fUST/lending_fUST_20250827
["ID","MTS","AMOUNT","RATE_DAILY","PERIOD"]
[381619730,1756298883666,3429.11361625,0.00020419,2]
[381619731,1756298897774,234.39961782,0.00019903,2]
[381619732,1756298901108,470.25742958,0.00020419,2]
[381619733,1756298908832,1775.5449447,0.000199,2]
[381619734,1756298920522,150.0,0.0002,30]
[381619735,1756298924673,242.4410132,0.00020415,2]
[381619736,1756298927033,328.86236014,0.00020419,2]
[381619737,1756298942489,300.0,0.00020518,2]
[381619738,1756298946314,7957.24619433,0.00020516,2]
[381619739,1756299002488,300.0,0.00020518,2]
[381619740,1756299003411,300.0,0.00020518,2]
[381619741,1756299003583,300.0,0.00020518,2]
[381619742,1756299003614,300.0,0.00020518,2]
[381619743,1756299003897,300.0,0.00020518,2]
[381619744,1756299006579,1200.0,0.00020518,2]
[381619746,1756299015193,666.0,0.00019613,2]
[381619747,1756299017259,293.26774857,0.00020519,2]
[381619834,1756299038065,-111144.6919612,0.00020519,2]
[381619836,1756299038076,-77730.74882611,0.00020519,2]
[381619838,1756299038084,-14017.78495489,0.00020519,2]
[381619843,1756299038121,-35982.21504511,0.00020519,2]
[381619845,1756299038130,-1000.0,0.00020519,2]
[381619847,1756299038140,-1000.0,0.00020519,2]
[381619849,1756299038149,-1000.0,0.00020519,2]
[381619851,1756299038159,-1000.0,0.00020519,2]
[381619853,1756299038169,-1000.0,0.00020519,2]
[381619855,1756299038178,-1115.51514959,0.00020519,2]
[381619857,1756299038187,-151.0,0.00020519,2]
[381619859,1756299038196,-151.0,0.00020519,2]
[381619861,1756299038206,-151.0,0.00020519,2]
[381619863,1756299038215,-151.0,0.00020519,2]
[381619865,1756299038224,-151.0,0.00020519,2]
[381619867,1756299038233,-161.87469292,0.00020519,2]
[381619869,1756299038243,-6485.73920408,0.00020519,2]
[381619871,1756299038252,-151.0,0.000206,3]
[381619873,1756299038261,-151.0,0.000206,3]
[381619875,1756299038271,-2000.0,0.000206,2]
[381619877,1756299038280,-5754.2641593,0.00020616,2]
[381619879,1756299038290,-33374.4882992,0.00020616,2]
[381619881,1756299038299,-6746.8633734,0.00020616,2]
[381619883,1756299038308,-2976.88,0.00020618,2]
[381619885,1756299038317,-2976.88,0.00020618,2]
[381619887,1756299038326,-2976.88,0.00020618,2]
[381619889,1756299038336,-2976.88,0.00020618,2]
[381619890,1756299038345,-2976.88,0.00020618,2]
[381619892,1756299038355,-2976.88,0.00020618,2]
[381619895,1756299038367,-2976.88,0.00020618,2]
[381619897,1756299038376,-2976.88,0.00020618,2]
[381619899,1756299038386,-2976.88,0.00020618,2]
[381619901,1756299038395,-2976.88,0.00020618,2]
[381619902,1756299038404,-2976.88,0.00020618,2]
[381619904,1756299038414,-2976.88,0.00020618,2]
[381619906,1756299038423,-2976.88,0.00020618,2]
[381619908,1756299038432,-2976.88,0.00020618,2]
[381619910,1756299038442,-2976.88,0.00020618,2]
[381619913,1756299038452,-2976.88,0.00020618,2]
[381619915,1756299038461,-2976.88,0.00020618,2]
[381619916,1756299038470,-2976.88,0.00020618,2]
[381619918,1756299038480,-2976.88,0.00020618,2]
[381619920,1756299038491,-150.0,0.00020618,2]
[381619923,1756299038500,-326.0,0.00020619,2]
[381619924,1756299038510,-326.0,0.00020619,2]
[381619927,1756299038519,-160.0,0.00020651,2]
[381619928,1756299038529,-500.0,0.00020767,2]
[381619931,1756299038539,-500.0,0.00020767,2]
[381619933,1756299038548,-500.0,0.00020767,2]
[381619935,1756299038558,-500.0,0.00020767,2]
[381619936,1756299038567,-500.0,0.00020767,2]
[381619938,1756299038576,-500.0,0.00020767,2]
[381619940,1756299038585,-7957.24619431,0.00020787,2]
[381619942,1756299038595,-151.0,0.000209,3]
[381619945,1756299038605,-506.73658747,0.00020933,2]
[381619947,1756299038615,-500.0,0.00020933,2]
[381619949,1756299038624,-500.0,0.00020933,2]
[381619950,1756299038633,-500.0,0.00020933,2]
[381619952,1756299038642,-394.33363111,0.00020933,2]
[381619954,1756299038652,-500.0,0.00020933,2]
[381619956,1756299038665,-500.0,0.00020933,2]
[381619958,1756299038674,-500.0,0.00020933,2]
[381619960,1756299038683,-500.0,0.00020933,2]
[381619962,1756299038693,-500.0,0.00020933,2]
[381619965,1756299038702,-500.0,0.00020933,2]
[381619967,1756299038711,-500.0,0.00020933,2]
[381619969,1756299038720,-500.0,0.00020933,2]
[381619971,1756299038730,-500.0,0.00020933,2]
[381619973,1756299038739,-444.17712935,0.00020933,2]
[381619975,1756299038748,-500.0,0.00020933,2]
[381619977,1756299038759,-500.0,0.00020933,2]
[381619979,1756299038768,-501.04479887,0.00020933,2]
[381619981,1756299038779,-500.0,0.00020933,2]
[381619983,1756299038789,-500.0,0.00020933,2]
[381619985,1756299038798,-468.30317516,0.00020933,2]
[381619986,1756299038808,-500.0,0.00020933,2]
[381619988,1756299038817,-500.0,0.00020933,2]
[381619991,1756299038826,-500.0,0.00020933,2]
[381619993,1756299038836,-500.0,0.00020933,2]
[381619995,1756299038846,-500.0,0.00020933,2]
[381619997,1756299038855,-500.0,0.00020933,2]
[381619999,1756299038866,-213.4658107,0.00020933,2]
[381620001,1756299038876,-503.23374094,0.00020933,2]
[381620003,1756299038885,-502.14909456,0.00020933,2]
[381620005,1756299038894,-500.0,0.00020933,2]
[381620007,1756299038903,-501.77756723,0.00020933,2]
[381620009,1756299038912,-156.01285083,0.00020933,2]
[381620011,1756299038922,-500.0,0.00020933,2]
[381620013,1756299038931,-500.0,0.00020933,2]
[381620015,1756299038941,-500.0,0.00020933,2]
[381620017,1756299038950,-500.0,0.00020933,2]
[381620019,1756299038959,-500.0,0.00020933,2]
[381620021,1756299038969,-500.0,0.00020933,2]
[381620023,1756299038978,-500.0,0.00020933,2]
[381620025,1756299038987,-502.38680401,0.00020933,2]
[381620027,1756299038996,-500.0,0.00020933,2]
[381620029,1756299039005,-500.0,0.00020986,2]
[381620031,1756299039014,-500.0,0.00020986,2]
[381620033,1756299039023,-500.0,0.00020986,2]
[381620035,1756299039033,-500.0,0.00020986,2]
[381620037,1756299039042,-163.98468888,0.00020988,2]
[381620039,1756299039052,-1942.28339133,0.00021,5]
[381620041,1756299039061,-5279.75504686,0.00021004,2]
[381620043,1756299039071,-500.0,0.00021025,2]
[381620045,1756299039080,-627.20092495,0.00021025,2]
[381620047,1756299039089,-500.0,0.00021025,2]
[381620049,1756299039099,-48596.3774125,0.00021029,2]
[381620051,1756299039108,-48307.7171824,0.00021029,2]
[381620053,1756299039118,-14231.2205451,0.00021029,2]
[381620055,1756299039127,-32659.9692362,0.00021029,2]
[381620057,1756299039135,-200.0,0.00021029,10]
[381620059,1756299039145,-200.0,0.00021029,10]
[381620061,1756299039154,-200.0,0.00021029,10]
[381620063,1756299039164,-200.0,0.00021029,10]
[381620065,1756299039174,-200.0,0.00021029,10]
[381620067,1756299039183,-200.0,0.00021029,10]
[381620069,1756299039192,-200.0,0.00021029,10]
[381620071,1756299039201,-200.0,0.00021029,10]
[381620073,1756299039210,-200.0,0.00021029,10]
[381620075,1756299039219,-300.0,0.0002103,20]
[381620077,1756299039229,-300.0,0.0002103,20]
[381620079,1756299039239,-300.0,0.0002103,20]
[381620081,1756299039248,-300.0,0.0002103,20]
[381620083,1756299039257,-300.0,0.0002103,20]
[381620084,1756299039266,-300.0,0.0002103,20]
[381620087,1756299039276,-300.0,0.0002103,20]
[381620088,1756299039285,-300.0,0.0002103,20]
[381620090,1756299039295,-300.0,0.0002103,20]
[381620092,1756299039305,-300.0,0.0002103,20]
[381620094,1756299039314,-300.0,0.0002103,20]
[381620096,1756299039323,-300.0,0.0002103,20]
[381620098,1756299039333,-300.0,0.0002103,20]
[381620100,1756299039343,-300.0,0.0002103,20]
[381620102,1756299039352,-300.0,0.0002103,20]
[381620104,1756299039361,-600.0,0.0002103,20]
[381620106,1756299039370,-500.0,0.00021041,2]
[381620107,1756299039380,-7957.24619431,0.00021058,2]
[381620109,1756299039389,-322.0,0.00021064,2]
[381620111,1756299039399,-500.0,0.00021204,20]
[381620113,1756299039408,-166.93,0.00021204,20]
[381620115,1756299039417,-166.93,0.00021204,20]
[381620117,1756299039427,-166.93,0.00021204,20]
[381620119,1756299039436,-166.93,0.00021204,20]
[381620121,1756299039445,-166.93,0.00021204,20]
[381620123,1756299039455,-166.9,0.00021204,20]
[381620125,1756299039465,-5797.02813256,0.00021241,2]
[381620127,1756299039475,-500.0,0.00021241,2]
[381620129,1756299039484,-500.0,0.00021241,2]
[381620131,1756299039493,-250.0,0.00021241,2]
[381620133,1756299039503,-250.0,0.00021241,2]
[381620135,1756299039512,-500.0,0.00021241,2]
[381620137,1756299039522,-500.0,0.00021241,2]
[381620139,1756299039532,-250.0,0.00021241,2]
[381620141,1756299039542,-500.0,0.00021241,2]
[381620143,1756299039552,-250.0,0.00021241,2]
[381620146,1756299039563,-500.0,0.00021241,2]
[381620148,1756299039572,-250.0,0.00021241,2]
[381620150,1756299039582,-250.0,0.00021241,2]
[381620151,1756299039592,-500.0,0.00021241,2]
[381620153,1756299039601,-500.0,0.00021241,2]
[381620155,1756299039611,-250.0,0.00021241,2]
[381620157,1756299039621,-500.0,0.00021241,2]
[381620159,1756299039631,-250.0,0.00021241,2]
[381620161,1756299039640,-500.0,0.00021241,2]
[381620163,1756299039649,-374.32716384,0.00021241,2]
[381620165,1756299039661,-500.0,0.00021241,2]
[381620167,1756299039670,-500.0,0.00021241,2]
[381620169,1756299039679,-500.0,0.00021241,2]
[381620171,1756299039689,-151.0,0.00021241,2]
[381620173,1756299039698,-156.587,0.00021241,2]
[381620200,1756299039928,-198.99657192,0.00021241,2]
[381620202,1756299039938,-1000.0,0.00021241,2]
[381620204,1756299039947,-1000.0,0.00021241,2]
[381620206,1756299039957,-1000.0,0.00021241,2]
[381620208,1756299039967,-1000.0,0.00021241,2]
[381620210,1756299039976,-1000.0,0.00021241,2]
[381620212,1756299039986,-1000.0,0.00021241,2]
[381620214,1756299039995,-1000.0,0.00021241,2]
[381620216,1756299040004,-1000.0,0.00021241,2]
[381620218,1756299040014,-1000.0,0.00021241,2]
[381620220,1756299040023,-151.0,0.00021241,2]
[381620222,1756299040032,-151.0,0.00021241,2]
[381620224,1756299040042,-151.0,0.00021241,2]
[381620226,1756299040052,-250.0,0.00021241,2]
[381620228,1756299040062,-20633.42279861,0.00021241,2]
[381620230,1756299040071,-1000.0,0.00021241,2]
[381620232,1756299040080,-1000.0,0.00021241,2]
[381620234,1756299040090,-151.0,0.00021241,2]
[381620236,1756299040099,-151.0,0.00021241,2]
[381620238,1756299040111,-250.0,0.00021241,2]
[381620240,1756299040120,-250.0,0.00021241,2]
[381620242,1756299040129,-151.0,0.00021241,2]
[381620244,1756299040139,-1000.0,0.00021241,2]
[381620246,1756299040148,-151.0,0.00021241,2]
[381620248,1756299040158,-151.0,0.00021241,2]
[381620250,1756299040167,-1000.0,0.00021241,2]
[381620252,1756299040177,-250.0,0.00021241,2]
[381620254,1756299040187,-151.0,0.00021241,2]
[381620256,1756299040196,-151.0,0.00021241,2]
[381620258,1756299040206,-250.0,0.00021241,2]
[381620260,1756299040215,-1000.0,0.00021241,2]
[381620262,1756299040224,-151.0,0.00021241,2]
[381620264,1756299040234,-151.0,0.00021241,2]
[381620266,1756299040244,-151.0,0.00021241,2]
[381620268,1756299040254,-151.0,0.00021241,2]
[381620270,1756299040263,-1000.0,0.00021241,2]
[381620271,1756299040272,-323.32113188,0.00021241,2]
[381620272,1756299040281,-1000.0,0.00021241,2]
[381620273,1756299040290,-151.0,0.00021241,2]
[381620274,1756299040299,-151.0,0.00021241,2]
[381620275,1756299040308,-300.0,0.00021241,2]
[381620276,1756299040318,-151.0,0.00021241,2]
[381620277,1756299040327,-151.0,0.00021241,2]
[381620278,1756299040336,-300.0,0.00021241,2]
[381620279,1756299040345,-1000.0,0.00021241,2]
[381620280,1756299040355,-194.72792766,0.00021241,2]
[381620281,1756299040365,-151.0,0.00021241,2]
[381620282,1756299040374,-151.0,0.00021241,2]
[381620283,1756299040383,-151.0,0.00021241,2]
[381620284,1756299040392,-300.0,0.00021241,2]
[381620285,1756299040401,-151.0,0.00021241,2]
[381620286,1756299040411,-1000.0,0.00021241,2]
[381620287,1756299040421,-151.0,0.00021241,2]
[381620288,1756299040430,-151.0,0.00021241,2]
[381620289,1756299040440,-151.0,0.00021241,2]
[381620290,1756299040450,-300.0,0.00021241,2]
[381620291,1756299040459,-151.0,0.00021241,2]
[381620292,1756299040469,-151.0,0.00021241,2]
[381620293,1756299040478,-151.0,0.00021241,2]
[381620294,1756299040487,-1000.0,0.00021241,2]
[381620295,1756299040497,-151.0,0.00021241,2]
[381620296,1756299040506,-151.0,0.00021241,2]
[381620297,1756299040515,-151.0,0.00021241,2]
[381620298,1756299040524,-151.0,0.00021241,2]
[381620299,1756299040534,-300.0,0.00021241,2]
[381620300,1756299040544,-300.0,0.00021241,2]
[381620301,1756299040554,-151.0,0.00021241,2]
[381620302,1756299040563,-1000.0,0.00021241,2]
[381620303,1756299040572,-151.0,0.00021241,2]
[381620304,1756299040582,-151.0,0.00021241,2]
[381620305,1756299040591,-151.0,0.00021241,2]
[381620306,1756299040600,-300.0,0.00021241,2]
[381620307,1756299040609,-260.74186169,0.00021241,2]
[381620308,1756299040618,-151.0,0.00021241,2]
[381620309,1756299040627,-151.0,0.00021241,2]
[381620310,1756299040637,-151.0,0.00021241,2]
[381620312,1756299040648,-151.0,0.00021241,2]
[381620314,1756299040659,-300.0,0.00021241,2]
[381620316,1756299040671,-2434.74389024,0.00021241,2]
[381620318,1756299040680,-151.0,0.00021241,2]
[381620320,1756299040689,-151.0,0.00021241,2]
[381620322,1756299040698,-151.0,0.00021241,2]
[381620323,1756299040708,-151.0,0.00021241,2]
[381620325,1756299040717,-151.0,0.00021241,2]
[381620327,1756299040727,-151.0,0.00021241,2]
[381620329,1756299040738,-151.0,0.00021241,2]
[381620331,1756299040747,-151.0,0.00021241,2]
[381620333,1756299040757,-300.0,0.00021241,2]
[381620335,1756299040767,-151.0,0.00021241,2]
[381620338,1756299040777,-151.0,0.00021241,2]
[381620339,1756299040786,-151.0,0.00021241,2]
[381620342,1756299040795,-151.0,0.00021241,2]
[381620344,1756299040804,-300.0,0.00021241,2]
[381620345,1756299040813,-151.0,0.00021241,2]
[381620347,1756299040823,-100000.0,0.00021263,2]
[381620349,1756299040833,-2524.82941417,0.00021296,2]
[381620351,1756299040842,-381.0,0.00021304,2]
[381620353,1756299040852,-500.0,0.00021315,2]
[381620355,1756299040862,-502.0606738,0.00021315,2]
[381620357,1756299040872,-1000.0,0.00021315,2]
[381620359,1756299040882,-1000.0,0.00021315,2]
[381620361,1756299040891,-7957.24619431,0.00021329,2]
[381620363,1756299040901,-2618.2481025,0.00021351,2]
[381620365,1756299040911,-2715.12328229,0.00021406,2]
[381620367,1756299040920,-2815.58284374,0.00021461,2]
[381620369,1756299040929,-1000.0,0.00021481,2]
[381620371,1756299040938,-1000.0,0.00021481,2]
[381620373,1756299040948,-1000.0,0.00021481,2]
[381620375,1756299040957,-1000.0,0.00021481,2]
[381620377,1756299040967,-1000.0,0.00021481,2]
[381620379,1756299040976,-1000.0,0.00021481,2]
[381620381,1756299040986,-1000.0,0.00021481,2]
[381620383,1756299040995,-636.12239028,0.00021481,2]
[381620385,1756299041007,-1000.0,0.00021481,2]
[381620387,1756299041016,-1000.0,0.00021481,2]
[381620389,1756299041025,-1000.0,0.00021481,2]
[381620391,1756299041034,-1000.0,0.00021481,2]
[381620393,1756299041043,-1000.0,0.00021481,2]
[381620395,1756299041053,-1000.0,0.00021481,2]
[381620397,1756299041065,-1000.0,0.00021481,2]
[381620399,1756299041074,-1000.0,0.00021481,2]
[381620401,1756299041083,-500.0,0.00021481,2]
[381620403,1756299041093,-1000.0,0.00021481,2]
[381620405,1756299041102,-1003.70918573,0.00021481,2]
[381620407,1756299041113,-396.51726885,0.00021481,2]
[381620409,1756299041122,-362.15189382,0.00021481,2]
[381620411,1756299041132,-664.00281279,0.00021481,2]
[381620413,1756299041141,-1000.0,0.00021481,2]
[381620415,1756299041150,-1000.0,0.00021481,2]
[381620417,1756299041159,-1000.0,0.00021481,2]
[381620419,1756299041169,-505.55281878,0.00021481,2]
[381620421,1756299041179,-1000.0,0.00021481,2]
[381620423,1756299041187,-1000.0,0.00021481,2]
[381620425,1756299041196,-456.66611744,0.00021481,2]
[381620427,1756299041206,-1000.0,0.00021481,2]
[381620429,1756299041216,-1000.0,0.00021481,2]
[381620431,1756299041225,-443.0,0.00021503,2]
[381620433,1756299041235,-2919.75940895,0.00021516,2]
[381620435,1756299041245,-520.29274837,0.00021534,2]
[381620437,1756299041254,-1004.29528285,0.00021534,2]
[381620439,1756299041263,-1000.0,0.00021534,2]
[381620441,1756299041272,-1000.0,0.00021534,2]
[381620443,1756299041282,-208.06602767,0.00021545,2]
[381620445,1756299041291,-1000.0,0.00021573,2]
[381620447,1756299041300,-1000.0,0.00021573,2]
[381620449,1756299041309,-500.0,0.00021588,2]
[381620451,1756299041319,-174.09210873,0.000216,2]
[381620453,1756299041328,-7957.24619431,0.000216,2]
[381620455,1756299041338,-1775.54494446,0.00021627,2]
[381620457,1756299041347,-222584.02617561,0.0002166,2]
[381620459,1756299041357,-1012.89567963,0.00021696,2]
[381620461,1756299041367,-294490.22814427,0.00021698,2]
[381620463,1756299041376,-407.95831418,0.00021753,2]
[381620465,1756299041386,-1283.9498834,0.00021783,2]
[381620467,1756299041395,-14185.82748383,0.000218,2]
[381620469,1756299041404,-1000.0,0.00021817,2]
[381620471,1756299041414,-500.0,0.00021862,2]
[381620473,1756299041423,-1500.0,0.00021863,2]
[381620475,1756299041432,-1500.99581644,0.00021863,2]
[381620477,1756299041441,-500.0,0.00021873,2]
[381620479,1756299041451,-500.0,0.00021873,2]
[381620481,1756299041460,-501.50644243,0.00021873,2]
[381620483,1756299041471,-500.0,0.00021873,2]
[381620485,1756299041480,-501.41813969,0.00021873,2]
[381620487,1756299041490,-565.6651766,0.00021873,2]
[381620489,1756299041499,-500.0,0.00021873,2]
[381620491,1756299041509,-343.42781251,0.00021873,2]
[381620493,1756299041518,-500.31743883,0.00021873,2]
[381620495,1756299041528,-501.34941827,0.00021873,2]
[381620497,1756299041537,-500.0,0.00021873,2]
[381620499,1756299041547,-500.0,0.00021873,2]
[381620501,1756299041557,-500.0,0.00021873,2]
[381620503,1756299041566,-500.0,0.00021873,2]
[381620505,1756299041576,-500.0,0.00021873,2]
[381620507,1756299041585,-502.16102371,0.00021873,2]
[381620509,1756299041595,-500.0,0.00021873,2]
[381620511,1756299041604,-500.0,0.00021873,2]
[381620513,1756299041614,-500.0,0.00021873,2]
[381620515,1756299041623,-500.0,0.00021873,2]
[381620517,1756299041633,-500.0,0.00021873,2]
[381620519,1756299041643,-500.0,0.00021873,2]
[381620521,1756299041652,-500.0,0.00021873,2]
[381620523,1756299041665,-500.0,0.00021873,2]
[381620525,1756299041674,-500.0,0.00021873,2]
[381620527,1756299041683,-500.0,0.00021873,2]
[381620529,1756299041693,-500.0,0.00021873,2]
[381620531,1756299041702,-500.0,0.00021873,2]
[381620533,1756299041711,-500.0,0.00021873,2]
[381620535,1756299041722,-500.0,0.00021873,2]
[381620537,1756299041731,-202.06544746,0.00021873,2]
[381620539,1756299041741,-500.0,0.00021873,2]
[381620541,1756299041750,-500.0,0.00021873,2]
[381620543,1756299041759,-500.0,0.00021873,2]
[381620545,1756299041769,-500.0,0.00021873,2]
[381620547,1756299041777,-500.0,0.00021873,2]
[381620549,1756299041786,-154.86355859,0.00021873,2]
[381620551,1756299041796,-500.0,0.00021873,2]
[381620553,1756299041805,-500.0,0.00021873,2]
[381620555,1756299041814,-232.94117572,0.00021873,2]
[381620557,1756299041825,-174.04518154,0.00021873,2]
[381620559,1756299041834,-500.0,0.00021873,2]
[381620561,1756299041843,-500.0,0.00021873,2]
[381620563,1756299041852,-500.0,0.00021873,2]
[381620565,1756299041862,-522.91788754,0.00021873,2]
[381620567,1756299041871,-500.0,0.00021873,2]
[381620569,1756299041880,-500.0,0.00021873,2]
[381620571,1756299041889,-500.0,0.00021873,2]
[381620573,1756299041899,-500.0,0.00021873,2]
[381620574,1756299041908,-500.0,0.00021873,2]
[381620576,1756299041917,-500.0,0.00021873,2]
[381620579,1756299041927,-500.0,0.00021873,2]
[381620581,1756299041936,-500.0,0.00021873,2]
[381620582,1756299041945,-500.0,0.00021873,2]
[381620584,1756299041955,-500.0,0.00021873,2]
[381620586,1756299041963,-500.57010825,0.00021873,2]
[381620588,1756299041972,-502.02243295,0.00021873,2]
[381620590,1756299041982,-500.0,0.00021873,2]
[381620592,1756299041991,-446.40180981,0.00021873,2]
[381620594,1756299042000,-500.0,0.00021873,2]
[381620597,1756299042012,-500.0,0.00021873,2]
[381620599,1756299042021,-500.0,0.00021873,2]
[381620601,1756299042031,-500.0,0.00021873,2]
[381620603,1756299042040,-500.0,0.00021873,2]
[381620605,1756299042050,-500.0,0.00021873,2]
[381620607,1756299042059,-500.0,0.00021873,2]
[381620609,1756299042068,-500.0,0.00021873,2]
[381620610,1756299042077,-500.0,0.00021873,2]
[381620613,1756299042086,-500.0,0.00021873,2]
[381620614,1756299042095,-500.0,0.00021873,2]
[381620616,1756299042105,-207.65667404,0.00021873,2]
[381620618,1756299042114,-500.0,0.00021873,2]
[381620620,1756299042123,-500.0,0.00021873,2]
[381620622,1756299042132,-500.0,0.00021873,2]
[381620624,1756299042142,-500.0,0.00021873,2]
[381620626,1756299042151,-500.0,0.00021873,2]
[381620628,1756299042161,-500.0,0.00021873,2]
[381620630,1756299042172,-500.0,0.00021873,2]
[381620632,1756299042182,-11329.96,0.00021879,3]
[381620634,1756299042191,-5664.98,0.00021879,3]
[381620636,1756299042200,-2832.48,0.00021879,3]
[381620638,1756299042210,-1416.24,0.00021879,3]
[381620640,1756299042220,-708.12,0.00021879,3]
[381620642,1756299042229,-354.06,0.00021879,3]
[381620644,1756299042238,-893.58,0.00021879,3]
[381620646,1756299042248,-2244.46,0.00021879,3]
[381620648,1756299042258,-1675.46,0.00021879,3]
[381620650,1756299042268,-837.74,0.00021879,3]
[381620652,1756299042279,-418.86,0.00021879,3]
[381620654,1756299042288,-12707.75045307,0.00021879,3]
[381620656,1756299042298,-417.15472785,0.00021879,3]
[381620658,1756299042309,-216.14835892,0.00021879,3]
[381620660,1756299042319,-529.56067766,0.00021879,3]
[381620662,1756299042329,-160.0,0.00021879,3]
[381620664,1756299042339,-160.0,0.00021879,3]
[381620666,1756299042349,-6345.91013395,0.00021882,2]
[381620668,1756299042359,-44910.40813776,0.000219,2]
[381620671,1756299042382,-575766.42186224,0.000219,2]
[381620673,1756299042391,-174120.22,0.000219,2]
[381620675,1756299042401,-151.0,0.000219,3]
[381620677,1756299042411,-151.0,0.000219,2]
[381620679,1756299042420,-151.0,0.000219,2]
[381620681,1756299042430,-151.0,0.000219,2]
[381620683,1756299042439,-200.0,0.000219,2]
[381620685,1756299042449,-200.0,0.000219,2]
[381620687,1756299042459,-200.0,0.000219,2]
[381620689,1756299042468,-200.0,0.000219,2]
[381620691,1756299042478,-151.0,0.000219,2]
[381620693,1756299042487,-151.0,0.000219,2]
[381620695,1756299042497,-151.0,0.000219,2]
[381620697,1756299042506,-151.0,0.000219,2]
[381620699,1756299042515,-151.0,0.000219,2]
[381620701,1756299042525,-151.498068,0.000219,2]
[381620703,1756299042535,-151.0,0.000219,2]
[381620705,1756299042545,-151.0,0.000219,2]
[381620707,1756299042554,-151.0,0.000219,2]
[381620709,1756299042564,-151.0,0.000219,2]
[381620711,1756299042573,-151.0,0.000219,2]
[381620713,1756299042583,-151.0,0.000219,2]
[381620715,1756299042593,-151.0,0.000219,2]
[381620717,1756299042602,-151.0,0.000219,2]
[381620719,1756299042612,-151.0,0.000219,2]
[381620722,1756299042621,-151.0,0.000219,2]
[381620724,1756299042630,-151.0,0.000219,2]
[381620726,1756299042640,-151.0,0.000219,2]
[381620728,1756299042649,-151.0,0.000219,2]
[381620730,1756299042660,-151.0,0.000219,2]
[381620732,1756299042672,-151.0,0.000219,2]
[381620735,1756299042682,-154.976772,0.000219,2]
[381620738,1756299042692,-151.0,0.000219,2]
[381620740,1756299042701,-676.682804,0.000219,2]
[381620742,1756299042711,-676.682804,0.000219,2]
[381620744,1756299042721,-676.682804,0.000219,2]
[381620746,1756299042732,-676.682804,0.000219,2]
[381620748,1756299042742,-151.0,0.000219,2]
[381620750,1756299042751,-151.0,0.000219,2]
[381620752,1756299042761,-151.0,0.000219,2]
[381620754,1756299042771,-151.0,0.000219,2]
[381620756,1756299042780,-317.788415,0.000219,2]
[381620758,1756299042791,-317.788415,0.000219,2]
[381620760,1756299042800,-317.788415,0.000219,2]
[381620762,1756299042809,-317.788415,0.000219,2]
[381620764,1756299042819,-151.299239,0.000219,2]
[381620766,1756299042829,-151.0,0.000219,2]
[381620768,1756299042838,-151.0,0.000219,2]
[381620770,1756299042848,-151.0,0.000219,2]
[381620772,1756299042859,-151.0,0.000219,2]
[381620774,1756299042870,-151.0,0.000219,2]
[381620776,1756299042879,-151.0,0.000219,2]
[381620778,1756299042889,-151.0,0.000219,2]
[381620780,1756299042898,-690.576612,0.000219,2]
[381620782,1756299042908,-151.0,0.000219,2]
[381620784,1756299042918,-690.576612,0.000219,2]
[381620787,1756299042928,-151.0,0.000219,2]